Cogmind - Beta 10.1 *** ADVENTURER MODE // 2020.09.21 @ 11:32:00 Player: Azormik Result: Destroyed by S-10 Pest with Light Assault Rifle Performance ------------- Evolutions (1) 500 Regions Visited (3) 600 Robots Destroyed (31) 155 Value Destroyed (843) 843 Prototype IDs (0) 0 Alien Tech Used (0) 0 Bonus (53) 53 TOTAL SCORE: 2151 Bonus ------- High Alert Combat Kills 53 Cogmind --------- Core Integrity 0/400 Matter 275/300 Energy 99/100 System Corruption 0% Temperature Cool (0) Movement Rolling (90) Ox1 Location -9/Mines Parts ------- > --- POWER (2) -------- (None) > --- PROPULSION (2) --- Wheel > --- UTILITY (3) ------ Small Storage Unit Small Storage Unit Signal Interpreter > --- WEAPON (2) ------- Particle Gun Datajack > --- INVENTORY (8) ---- (None) Peak State ------------ > --- POWER ------------ Ion Engine Light Ion Engine > --- PROPULSION ------- Light Treads Compact Wheel > --- UTILITY ---------- Small Storage Unit Small Storage Unit Signal Interpreter > --- WEAPON ----------- Assault Rifle Assault Rifle > --- INVENTORY -------- Wheel EM Pulse Gun Small Laser Small Laser Datajack [Rating: 9] Favorites ----------- Power Ion Engine Engine Ion Engine Propulsion Light Treads Treads Light Treads Leg Aluminum Leg Wheel Compact Wheel Utility Small Storage Unit Storage Small Storage Unit Processor Signal Interpreter Weapon Assault Rifle Energy Gun EM Pulse Gun Ballistic Gun Assault Rifle Special Melee Weapon Datajack Build | -11 -10 -9 -9 ------- Run | Scr Mat Mat Min Slots Evolved 2 | . . 2 . Power 1 | . . 1 . Propulsion . | . . . . Utility 1 | . . 1 . Weapon . | . . . . Parts Attached 20 | 5 2 10 3 Power 2 | . 1 1 . Engine 2 | . 1 1 . Core . | . . . . Reactor . | . . . . Propulsion 6 | 2 . 3 1 Treads 2 | 2 . . . Leg 2 | . . 2 . Wheel 2 | . . 1 1 Hover . | . . . . Flight . | . . . . Utility 3 | 1 1 1 . Device . | . . . . Storage 2 | 1 1 . . Processor 1 | . . 1 . Hackware . | . . . . Protection . | . . . . Artifact . | . . . . Weapon 9 | 2 . 5 2 Energy Gun 5 | . . 4 1 Energy Cannon . | . . . . Ballistic Gun 3 | 2 . 1 . Ballistic Cannon . | . . . . Launcher . | . . . . Special Weapon . | . . . . Impact Weapon . | . . . . Slashing Weapon . | . . . . Piercing Weapon . | . . . . Special Melee Weapon 1 | . . . 1 Unidentified Prototypes . | . . . . Parts Lost 14 | . . 13 1 Power 2 | . . 2 . Propulsion 5 | . . 4 1 Utility . | . . . . Weapon 7 | . . 7 . Highest Loss Streak 9 | . . 9 1 Average Slot Usage (%) 76 | . 89 70 73 Engine 6 | . 4 7 . Treads 14 | . 28 9 . Leg 4 | . . 6 9 Wheel 1 | . . 1 11 Storage 23 | . 27 22 22 Processor 4 | . . 6 11 Energy Gun 3 | . . 3 11 Ballistic Gun 16 | . 28 12 . Naked Turns . | . . . . Heaviest Build 20 | 8 17 20 12 Greatest Support 40 | 40 40 40 10 Greatest Overweight (x) 3 | . . 3 1 Average Overweight (x) . | . . . . Largest Inventory Capacity 8 | 6 8 8 8 Average Capacity 7 | 5 7 8 8 Most Carried 8 | 6 7 8 3 Average Carried 5 | 3 6 5 . Final Capacity 8 | 6 8 8 8 Final Carried 7 | 5 7 3 . Class Distribution -------------------- 100% | Mutant Dominant Class ---------------- Mutant | -10/Materials Mutant | -9/Materials Mutant | -9/Mines Resources | -11 -10 -9 -9 ----------- Run | Scr Mat Mat Min Matter Collected 682 | 197 164 321 . Remotely . | . . . . Salvage Created 1061 | . 295 766 . Parts 71 | . 20 51 . Haulers Intercepted . | . . . . Recyclers Shooed 2 | . 1 1 . Parts Field Recycled . | . . . . Retrieved Matter . | . . . . Parts Self-Destructed . | . . . . Prevented . | . . . . Kills | -11 -10 -9 -9 ------- Run | Scr Mat Mat Min Combat Hostiles Destroyed 27 | . 5 22 . Guns 27 | . 5 22 . Classes Destroyed 6 | . 3 3 . Builder 1 | . . 1 . Recycler 1 | . 1 . . Watcher 2 | . 2 . . Swarmer 7 | . . 7 . Grunt 19 | . 5 14 . Sentry 1 | . . 1 . Best Kill Streak 10 | . 5 10 . Combat Bots Only 9 | . 3 9 . Max Kills in Single Turn 2 | . 1 2 . Gunslinging 1 | . . 1 . Exploded . | . . . . Melee . | . . . . Uniques/NPCs Destroyed . | . . . . Combat | -11 -10 -9 -9 -------- Run | Scr Mat Mat Min Damage Taken 1658 | . 149 1484 25 Core 440 | . 34 386 20 Absorbed by Shields . | . . . . Core Remaining (%) 93 | 100 86 . . Volleys Fired 92 | . 17 75 . Largest 2 | . 2 2 . Hottest 80 | . 40 80 . Shots Fired 161 | . 34 127 . Gun 161 | . 34 127 . Cannon . | . . . . Launcher . | . . . . Special . | . . . . Kinetic 131 | . 34 97 . Thermal 22 | . . 22 . Explosive . | . . . . Electromagnetic 8 | . . 8 . Robot Hit Streak 24 | . 24 22 . Robot Miss Streak 2 | . 2 2 . Penetration Max . | . . . . Secondary Targets 4 | . 1 3 . Max Gunslinging Chain 1 | . 1 1 . Shots Hit Robots 138 | . 29 105 4 Core Hits 54 | . 11 43 . Critical Hits 1 | . . 1 . Critical Kills . | . . . . Critical Parts Destroyed 1 | . . 1 . Melee Attacks 4 | . . . 4 Impact . | . . . . Slashing . | . . . . Piercing . | . . . . Sneak Attacks 2 | . . . 2 Combat Hostiles . | . . . . Follow-up Attacks . | . . . . Damage Inflicted 1739 | . 379 1360 . Guns 1735 | . 377 1358 . Cannons . | . . . . Explosions . | . . . . Melee . | . . . . Ramming 4 | . 2 2 . Kinetic 1379 | . 377 1002 . Thermal 252 | . . 252 . Explosive . | . . . . Electromagnetic 104 | . . 104 . Impact . | . . . . Slashing . | . . . . Piercing . | . . . . Highest Corruption . | . . . . Average Corruption . | . . . . Corruption Purged . | . . . . Overload Shots . | . . . . Overflow Damage . | . . . . Projectiles . | . . . . Explosions . | . . . . Melee . | . . . . Knockbacks . | . . . . Impact . | . . . . Kinetic . | . . . . Secondary . | . . . . Self-Inflicted Damage 1 | . . 1 . Shots . | . . . . Rammed 4 | . 2 2 . Targets Rammed 5 | . 3 2 . Kicked . | . . . . Crushed 1 | . 1 . . Highest Temperature 67 | . . 67 . Average Temperature 29 | . . 29 . Received Heat Transfer 996 | . 108 888 . Siege Activations . | . . . . Robots Corrupted . | . . . . Combat Hostiles . | . . . . Parts Fried 1 | . . 1 . Impact Corruptions . | . . . . Robots Melted . | . . . . Combat Hostiles . | . . . . Parts Melted . | . . . . Heat Transferred 597 | . . 597 . Parts Sabotaged . | . . . . Parts Stolen . | . . . . Parts Stripped . | . . . . Power Chain Reactions . | . . . . Missiles Intercepted . | . . . . Alert | -11 -10 -9 -9 ------- Run | Scr Mat Mat Min Peak Influence 501 | . 172 501 122 Initial 122 | . . 61 122 Average 212 | . 83 314 121 Maximum Alert Level 2 | . . 2 . Low Security (%) 52 | 100 100 19 100 Level 1 33 | . . 56 . Level 2 14 | . . 24 . Level 3 . | . . . . Level 4 . | . . . . Level 5 . | . . . . High Security . | . . . . Max Security . | . . . . Squads Dispatched 6 | . 1 5 . Investigation 2 | . 1 1 . Extermination . | . . . . Reinforcement 4 | . . 4 . Assault . | . . . . Garrison . | . . . . Intercept . | . . . . Construction Impeded . | . . . . Haulers Reinforced . | . . . . Stealth | -11 -10 -9 -9 --------- Run | Scr Mat Mat Min Distress Signals 2 | . . 2 . Communications Jammed . | . . . . Distress Signals . | . . . . Times Spotted 51 | . 8 40 3 Peak Tracking Total 6 | . 5 6 3 Tactical Retreats 1 | . . 1 . Traps | -11 -10 -9 -9 ------- Run | Scr Mat Mat Min Traps Triggered 1 | . 1 . . Indirectly . | . . . . Trap Hack Attempts . | . . . . Triggered . | . . . . Disarmed . | . . . . Reprogrammed . | . . . . Reused . | . . . . Traps Extracted . | . . . . Installed . | . . . . Triggered . | . . . . Machines | -11 -10 -9 -9 ---------- Run | Scr Mat Mat Min Machines Disabled . | . . . . Max in Single Turn . | . . . . Machines Sabotaged . | . . . . Garrisons Compromised . | . . . . Overloaded Fab Kills . | . . . . Fab Network Shutdowns . | . . . . Hacking | -11 -10 -9 -9 --------- Run | Scr Mat Mat Min Machines Accessed 4 | . 1 3 . Terminals 4 | . 1 3 . Fabricators . | . . . . Repair Stations . | . . . . Recycling Units . | . . . . Scanalyzers . | . . . . Garrison Access . | . . . . Total Hacks 15 | . 4 11 . Successful 9 | . 2 7 . Failed 6 | . 2 4 . Catastrophic . | . . . . Database Lockouts . | . . . . Manual . | . . . . Terminals 15 | . 4 11 . Fabricators . | . . . . Repair Stations . | . . . . Recycling Units . | . . . . Scanalyzers . | . . . . Garrison Access . | . . . . Terminal Hacks 9 | . 2 7 . Record 5 | . . 5 . Branch Access Points 1 | . . 1 . Recall Reinforcements 2 | . 2 . . Zone Layout 1 | . . 1 . Fabricator Hacks . | . . . . Repair Station Hacks . | . . . . Recycling Unit Hacks . | . . . . Scanalyzer . | . . . . Garrison Access Hacks . | . . . . Unauthorized Hacks . | . . . . Terminals . | . . . . Fabricators . | . . . . Repair Stations . | . . . . Recycling Units . | . . . . Scanalyzers . | . . . . Garrison Access . | . . . . Data Cores Recovered . | . . . . Used . | . . . . Hacking Detections 4 | . 1 3 . Full Trace Events 2 | . 1 1 . Feedback Events . | . . . . Feedback Blocked . | . . . . Robot Schematics Acquired . | . . . . Robots Built . | . . . . Matter . | . . . . Time . | . . . . Total Robot Build Rating . | . . . . Part Schematics Acquired . | . . . . Parts Built . | . . . . Matter . | . . . . Time . | . . . . Total Part Build Rating . | . . . . Parts Repaired . | . . . . Time . | . . . . Parts Recycled . | . . . . Recycled Matter . | . . . . Retrieved Matter . | . . . . Retrieved Components . | . . . . Parts Scanalyzed . | . . . . Part Schematics Acquired . | . . . . Parts Damaged . | . . . . Bothacking | -11 -10 -9 -9 ------------ Run | Scr Mat Mat Min Used RIF Installer . | . . . . Robots Hacked 2 | . . . 2 Non-combat 1 | . . . 1 Combat 1 | . . . 1 Robot Hacks Applied 2 | . . . 2 parse_system 1 | . . . 1 no_distress 1 | . . . 1 Relay Couplers Released . | . . . . Robots Rewired . | . . . . Allies Hacked . | . . . . Hacks Repelled . | . . . . Allies | -11 -10 -9 -9 -------- Run | Scr Mat Mat Min Total Allies . | . . . . Largest Group . | . . . . Highest-Rated Group . | . . . . Highest-Rated Ally . | . . . . Total Orders . | . . . . Ally Attacks . | . . . . Total Damage . | . . . . Kills . | . . . . Allies Corrupted . | . . . . Allies Melted . | . . . . Intel | -11 -10 -9 -9 ------- Run | Scr Mat Mat Min Robot Analysis Total . | . . . . Derelict Logs Recovered . | . . . . Drone Launches . | . . . . Drone Recoveries . | . . . . Exploration | -11 -10 -9 -9 ------------- Run | Scr Mat Mat Min Turns Passed 1182 | 117 302 694 69 Spaces Moved 639 | 70 151 354 64 Core 15 | 7 . 8 . Treads 332 | 63 151 118 . Legs 179 | . . 176 3 Wheels 113 | . . 52 61 Hover . | . . . . Flight . | . . . . Fastest Speed 50 | 50 160 110 90 Average Speed 137 | 149 160 133 91 Slowest Speed 200 | 160 160 200 120 Overloaded Moves . | . . . . Propulsion Burnouts . | . . . . Robots Hopped . | . . . . Cave-ins Triggered . | . . . . Exploration Rate (%) 21 | 5 32 34 13 Regions Visited 3 Branch Regions 1 Pre-discovered Areas . | . . . . Known Exits Taken 1 | . . 1 . Unknown Exits Taken 2 | 1 1 . . Scrap Searched . | . . . . Spaces Dug . | . . . . Terrain Destroyed . | . . . . Melee . | . . . . Projectile . | . . . . AOE . | . . . . Terrain Rammed . | . . . . Walls Destroyed . | . . . . Machines Disabled . | . . . . Actions | -11 -10 -9 -9 --------- Run | Scr Mat Mat Min Total 779 | 82 176 450 71 Wait 4 | . . 4 . Move 636 | 69 150 353 64 Hop . | . . . . Pick Up 18 | 8 4 6 . Fast Attach 2 | 2 . . . Attach 18 | 3 2 10 3 Detach . | . . . . Swap . | . . . . Drop . | . . . . Fire 92 | . 17 75 . Melee 4 | . . . 4 Ram 2 | . . 2 . Kick . | . . . . Crush 3 | . 3 . . Escape Stasis . | . . . . Rewire . | . . . . Trap . | . . . . Miscellaneous . | . . . . Route ------- -11/Scrapyard -10/Materials -9/Materials -9/Mines History --------- Turn | Location | Event 39 | -11/Scrapyard | Discovered new exit (range 16) 118 | -11/Scrapyard | Entered Materials 336 | -10/Materials | Build established: Mutant 406 | -10/Materials | Discovered new exit (range 7) 420 | -10/Materials | Entered another Materials area 420 | -9/Materials | Evolved 2 slots: Power x1, Utility x1 689 | -9/Materials | Destroyed 9 combat bots 739 | -9/Materials | Identified exit to Mines 830 | -9/Materials | Core integrity fell below 50% 896 | -9/Materials | Lost 9 parts (2p2n5w) 1031 | -9/Materials | Core integrity fell below 20% 1114 | -9/Materials | Entered Mines 1183 | -9/Mines | Destroyed by S-10 Pest with Light Assault Rifle Last Messages --------------- R-06 Scavenger inserts Heat Sink into recycling unit. Recycling unit begins recycling process. LOCATION=MINES GOAL=ESCAPE K-01 Serf collects debris. Sneak attack on T-07 Excavator. Jacked T-07 Excavator... >>no_distress Distress signal routine blocked. K-01 Serf collects debris. Sneak attack on K-01 Serf. Jacked K-01 Serf... >>find_chute No applicable chute records found in memory. K-01 Serf collects debris. Jacked S-10 Pest... >>parse_system Reading system data... Aluminum Leg destroyed. Jacked S-10 Pest... Map ----- +----------------------------------------------------+ | ?????????????????????????????????????????????????? | | ?????????????????????????????????????????????????? | | ?????????????????????????????????????????????????? | | ?????????????????????????????????????????????????? | | ?????????????????????????????????????????????????? | | ?????????????????????????????????????????????????? | | ?????????????????????????????????????????????????? | | ?????????????????????????????????????????????????? | | ???????????????###########???????????????????????? | | ???????????????# #???????????????????????? | | ???????????????# """ """ #?##????????????????????? | | ???????????????# """ """ #?# ????????????????????? | | ???????????????# """ """ #?? ??????????????????? | | ???????????????# #?? ""??????????????????? | | ???????????????# """ """ #?? ""??????????????????? | | ???????????????# """ """ #?? ""??????????????????? | | ???????????????# """ """ #?? ??????????????????? | | ???????????????# #?? ??????????????????? | | ???????????????# """ """ #??# #??????????????????? | | ???????????????# """ """ #??# #??????????????????? | | ???????????????# """ """ #### #??????????????????? | | ???????????????# #ss #??????????????????? | | ???????????????# # ####??????????????????? | | ???????????????### ######s#?????????????????????? | | ?????????????????# #?????????????????????? | | ???????????????### #####@##?????????????????????? | | ????????????#### ##??# #??????????????????????? | | ???????????## ##?# ??????????????????????? | | ???????????# ######?????????????????????? | | ?????# #### ##????????????????????????? | | ?????# #????????????????????????? | | ?????# ##### #????????????????????????? | | ????????????#### ##????????????????????????? | | ???????????????## ##?????????????????????????? | | ????????????????#######??????????????????????????? | | ?????????????????????????????????????????????????? | | ?????????????????????????????????????????????????? | | ?????????????????????????????????????????????????? | | ?????????????????????????????????????????????????? | | ?????????????????????????????????????????????????? | | ?????????????????????????????????????????????????? | | ?????????????????????????????????????????????????? | | ?????????????????????????????????????????????????? | | ?????????????????????????????????????????????????? | | ?????????????????????????????????????????????????? | | ?????????????????????????????????????????????????? | | ?????????????????????????????????????????????????? | | ?????????????????????????????????????????????????? | | ?????????????????????????????????????????????????? | | ?????????????????????????????????????????????????? | +----------------------------------------------------+ Best States ------------- Heat Dissipation 28 Energy Generation 15 Energy Capacity 275 Matter Stores 300 Matter Capacity 300 Sight Range 16 Terrain Scan Density 10 Resistance: KI 20 Resistance: TH 20 Resistance: EX 20 Resistance: EM 20 Resistance: I 20 Resistance: S 20 Resistance: P 20 Evasion (%) 42 Recoil Reduction 2 Offensive Hacking 10 Item Schematics ----------------- None Robot Schematics ------------------ None Fabricated ------------ Nothing Alien Tech Used ----------------- None Achievements -------------- None Challenges ------------ None Game ------ Seed GhostHeavyDiverter Manual? 0 Play Time 00:31:38 Cumulative 20.5 hours Start 2020.09.21 @ 10:56:04 End 2020.09.21 @ 11:32:00 Sessions 1 Manual Loads 0 Difficulty Adventurer Special Mode None Game No. 26 Rogue 24 Adventurer 2 Explorer 0 Win Type - Total 0 Types 0/0/0/0/0/0/0/0/0 Lore% 19 Gallery% 14 Achievement% 12 Wizard Run 0 Options --------- ASCII 1 Keyboard 0 Movement Arrows Keybinds 0 Fullscreen 2 Font 18/SmallcapsGlow Map View 76x50 Tactical HUD 0 Map Filters NONE Filters NONE Steam 1 RUN: 3687e51b-388d-4cb7-b9f2-622458c06fec